bitfinex/quotes_SOLUSD_20250806
["timestamp","ask_amount","ask_price","bid_price","bid_amount"]
[1754447637317,8.6591492,163.03,163.02,0.72]
[1754447638199,8.6591492,163.03,163.02,9.23235982]
[1754447638200,4.55838643,163.03,163.02,9.23235982]
[1754447638722,4.55838643,163.03,163.02,15.36657648]
[1754447639117,8.6591492,163.03,163.01,14.64685648]
[1754447639331,4.55838643,163.02,163.01,15.36685648]
[1754447640027,4.55838643,163.02,163.0,6.13486391]
[1754447640221,4.10076277,163.02,163.01,0.72]
[1754447640415,4.56428186,163.02,163.01,0.72]
[1754447640921,4.56428186,163.02,163.01,15.36695278]
[1754447641534,0.03,163.05,163.01,15.36695278]
[1754447641732,4.5636078,163.04,163.02,0.72]
[1754447641908,0.03,163.05,163.03,51.43235982]
[1754447642225,0.03,163.05,163.04,9.23235982]
[1754447642400,4.59255328,163.05,163.04,15.365824]
[1754447643926,4.59255328,163.05,163.03,57.56607903]
[1754447644231,0.03,163.05,163.03,57.56607903]
[1754447644433,0.03,163.05,163.04,0.69]
[1754447644618,4.59177021,163.05,163.04,0.69]
[1754447645122,4.59177021,163.05,163.03,57.56607903]
[1754447645322,0.03,163.05,163.03,58.25607903]
[1754447645536,0.03,163.05,163.03,42.92]
[1754447645843,4.56102934,163.04,163.03,42.92]
[1754447649335,13.72338916,163.04,163.0,42.9]
[1754447649507,13.72338916,163.03,163.0,42.9]
[1754447649831,13.07338916,163.02,163.0,42.9]
[1754447650032,9.16235982,163.01,163.0,42.9]
[1754447650245,13.72286604,163.01,163.0,42.9]
[1754447651032,13.72286604,163.01,162.97,49.03603076]
[1754447651202,13.07286604,163.0,162.97,49.72603076]
[1754447651406,8.51235982,163.0,162.97,49.72603076]
[1754447652012,8.51235982,163.0,162.97,43.59]
[1754447652208,0.65,162.99,162.97,42.88]
[1754447652409,9.16235982,162.99,162.97,42.88]
[1754447652628,8.51235982,162.98,162.97,42.88]
[1754447653137,8.51235982,162.99,162.97,42.88]
[1754447653517,9.16235982,162.99,162.97,42.88]
[1754447653851,8.51235982,162.98,162.97,42.88]
[1754447654144,49.96795924,162.98,162.95,0.06]
[1754447654441,23.61857539,162.96,162.95,0.06]
[1754447654618,32.28839037,162.96,162.95,0.06]
[1754447654809,32.93839037,162.96,162.95,0.06]
[1754447656048,39.07486557,162.96,162.95,0.06]
[1754447656845,65.21702714,162.96,162.95,0.06]
[1754447657628,15.24837714,162.95,162.94,0.06]
[1754447657814,37.56604437,162.95,162.94,0.06]
[1754447658021,44.35289616,162.95,162.94,0.06]
[1754447658733,49.41984342,162.95,162.94,0.06]
[1754447658941,44.85690588,162.95,162.94,0.06]
[1754447659134,49.42070176,162.95,162.94,0.06]
[1754447659329,49.42070176,162.95,162.93,0.06]
[1754447659530,15.10621557,162.93,162.92,0.2]
[1754447659751,42.48907933,162.93,162.92,0.2]
[1754447659957,49.27668443,162.93,162.92,0.2]
[1754447661341,49.27306016,162.93,162.92,0.2]
[1754447662443,51.73180016,162.93,162.92,0.2]
[1754447663373,48.62306016,162.93,162.92,0.2]
[1754447663669,86.42919617,162.93,162.92,0.2]
[1754447663859,112.42919617,162.93,162.92,0.2]
[1754447664055,63.35159107,162.93,162.92,0.89]
[1754447664930,69.48919617,162.93,162.92,0.89]
[1754447665238,69.48919617,162.93,162.92,0.2]
[1754447667538,63.35159107,162.93,162.92,0.89]
[1754447668063,63.34611249,162.93,162.92,0.89]
[1754447668658,8.66058984,162.93,162.92,0.89]
[1754447668864,4.5537124,162.93,162.92,0.89]
[1754447669047,13.60930708,162.96,162.92,0.89]
[1754447669254,8.65029116,162.95,162.93,0.69]
[1754447669431,4.55253037,162.94,162.93,0.69]
[1754447669932,22.22959964,162.95,162.93,0.69]
[1754447670134,4.55253037,162.94,162.93,0.69]
[1754447672363,0.03,162.96,162.93,0.69]
[1754447672538,4.58249757,162.96,162.93,14.26930708]
[1754447672737,4.55249757,162.95,162.94,14.26930708]
[1754447673061,0.03,162.96,162.94,14.26930708]
[1754447673378,0.03,162.96,162.95,14.26930708]
[1754447674557,0.03,162.96,162.95,0.69]
[1754447677062,0.03,162.96,162.95,20.40615887]
[1754447678647,0.03,162.96,162.95,15.30087364]
[1754447683594,0.03,162.96,162.95,15.44303521]
[1754447684850,0.03,162.96,162.95,15.30087364]
[1754447685050,0.03,162.96,162.95,58.22087364]
[1754447685980,0.03,162.96,162.95,43.64]
[1754447686281,0.03,162.96,162.95,52.11402185]
[1754447686780,0.03,162.96,162.95,58.25087364]
[1754447687647,0.03,162.96,162.95,57.53087364]
[1754447687851,0.03,162.96,162.95,49.05685179]
[1754447688074,0.03,162.96,162.95,58.25087364]
[1754447688397,0.03,162.96,162.95,58.39303521]
[1754447689194,0.03,162.96,162.95,147.49303521]
[1754447690696,0.03,162.96,162.95,152.43308777]
[1754447690864,0.03,162.96,162.95,152.47308777]
[1754447691183,0.03,162.96,162.95,49.09685179]
[1754447691684,0.03,162.96,162.95,63.37308777]
[1754447691889,0.03,162.96,162.95,49.09685179]
[1754447692081,0.03,162.96,162.95,63.37308777]
[1754447692264,0.03,162.96,162.95,62.65308777]
[1754447693275,0.03,162.96,162.95,63.37308777]
[1754447693862,0.03,162.96,162.95,62.65308777]
[1754447695074,0.03,162.96,162.95,63.37308777]
[1754447696086,0.03,162.96,162.95,49.81685179]
[1754447696295,0.03,162.96,162.95,49.09685179]
[1754447696504,0.03,162.96,162.95,42.96]
[1754447696704,0.03,162.96,162.95,42.98]
[1754447698601,0.03,162.96,162.95,62.67308777]
[1754447699397,0.03,162.96,162.95,63.39308777]
[1754447700194,0.03,162.96,162.95,57.25623598]
[1754447700397,0.03,162.96,162.95,42.98]
[1754447701595,0.03,162.96,162.95,62.67308777]
[1754447702178,0.03,162.96,162.95,42.98]
[1754447702482,4.59665265,162.96,162.95,42.98]
[1754447703083,4.59693052,162.96,162.95,42.98]
[1754447703296,0.03,162.96,162.95,49.11685179]
[1754447704207,0.03,162.96,162.95,63.35308777]
[1754447704802,0.03,162.96,162.95,63.49524934]
[1754447706580,0.03,162.98,162.97,6.13609866]
[1754447706783,0.03,162.98,162.97,62.77449621]
[1754447706989,0.03,162.98,162.97,63.45449621]
[1754447708691,4.11383383,163.04,162.98,0.14216157]
[1754447708883,0.03,163.05,163.03,13.55623598]
[1754447709091,4.14383383,163.05,163.04,42.94]
[1754447709375,9.39722996,163.05,163.04,42.94]
[1754447709581,4.60339613,163.05,163.04,42.94]
[1754447709781,8.71722996,163.05,163.04,42.94]
[1754447710018,22.27346594,163.05,163.04,42.92]
[1754447710204,29.01655394,163.05,163.03,42.92]
[1754447710508,22.85346594,163.04,162.98,13.55623598]
[1754447710685,13.55623598,163.02,162.99,42.92]
[1754447710885,9.29722996,163.01,162.99,42.92]
[1754447711079,4.57339613,163.0,162.99,42.92]
[1754447711876,18.74243595,163.0,162.96,6.13639799]
[1754447712085,18.74243595,163.0,162.97,42.94]
[1754447712086,9.30514759,162.99,162.97,42.94]
[1754447712284,4.57619997,162.98,162.97,42.94]
[1754447714118,9.30920048,162.98,162.97,42.94]
[1754447718815,9.31498204,162.98,162.97,42.94]
[1754447720089,8.70498204,162.98,162.97,42.94]
[1754447720290,8.70498204,162.98,162.97,43.62]
[1754447720610,8.70498204,162.98,162.97,58.23044953]
[1754447720611,4.12878207,162.98,162.97,58.23044953]
[1754447720820,8.71624774,162.98,162.97,58.23044953]
[1754447721820,8.71678083,162.98,162.97,58.23044953]
[1754447724315,4.58799876,162.98,162.97,58.23044953]
[1754447725418,4.58799876,162.98,162.97,51.41435087]
[1754447725592,4.58799876,162.98,162.97,42.94]
[1754447725793,9.39713688,162.98,162.97,42.94]
[1754447726210,17.87148775,162.98,162.97,42.94]
[1754447726403,17.87148775,162.98,162.97,42.92]
[1754447727198,9.39713688,162.98,162.97,42.92]
[1754447729120,8.71713688,162.98,162.97,42.92]
[1754447729523,4.12913812,162.98,162.97,42.92]
[1754447729720,8.71712564,162.98,162.97,42.92]
[1754447730719,8.74712564,162.98,162.97,49.73609866]
[1754447730898,8.74712564,162.98,162.97,43.6]
[1754447731825,8.74712564,162.98,162.97,49.73609866]
[1754447732413,8.74712564,162.98,162.97,42.92]
[1754447732624,9.42712564,162.98,162.97,42.92]
[1754447733630,8.74712564,162.98,162.97,42.92]
[1754447734830,8.74712564,162.98,162.97,43.62]
[1754447735014,8.74712564,162.98,162.97,49.75609866]
[1754447735642,0.03,162.98,162.97,58.3726111]
[1754447736446,0.03,162.98,162.97,84.3726111]
[1754447736616,0.03,162.98,162.97,84.98622096]
[1754447737733,0.03,162.98,162.97,84.3726111]
[1754447740744,0.03,162.98,162.97,40.61044953]
[1754447740943,0.03,162.98,162.97,57.49044953]
[1754447742337,0.03,162.98,162.96,6.13638362]
[1754447742546,4.8165734,162.97,162.95,0.06]
[1754447742722,4.1265734,162.96,162.95,0.06]
[1754447743058,4.1265734,162.96,162.95,49.07672354]
[1754447743244,4.8165734,162.96,162.95,49.07672354]
[1754447743549,4.1265734,162.96,162.95,49.07672354]
[1754447745140,4.8165734,162.96,162.95,42.94]
[1754447746841,13.29092427,162.96,162.95,0.06]
[1754447747032,24.58882212,162.96,162.95,0.06]
[1754447747334,39.69503769,162.96,162.95,0.06]
[1754447747534,15.10621557,162.95,162.94,0.06]
[1754447747729,28.39713984,162.95,162.94,0.06]
[1754447747941,8.47435087,162.94,162.93,0.06]
[1754447748248,13.29092427,162.94,162.93,0.06]
[1754447748424,4.8165734,162.94,162.93,0.06]
[1754447748738,13.29092427,162.94,162.93,0.06]
[1754447750440,24.5839217,162.94,162.93,0.06]
[1754447750649,19.42815269,162.94,162.93,0.06]
[1754447751468,34.53436826,162.94,162.93,0.06]
[1754447751833,39.69013727,162.94,162.93,0.06]
[1754447752249,39.83229884,162.94,162.92,0.2]
[1754447752469,0.14216157,162.92,162.91,0.2]
[1754447752765,28.53930141,162.92,162.91,0.2]
[1754447753361,34.67728324,162.92,162.91,0.2]
[1754447754064,60.53512167,162.92,162.91,0.2]
[1754447758579,103.49512167,162.92,162.91,0.2]
[1754447760048,102.80512167,162.92,162.91,0.2]
[1754447760274,38.60092427,162.92,162.91,0.2]
[1754447760875,12.60092427,162.92,162.91,0.2]
[1754447761493,8.47435087,162.93,162.91,0.2]
[1754447761700,9.16435087,162.92,162.91,0.2]
[1754447761876,13.27131083,162.92,162.91,0.2]
[1754447762892,12.58131083,162.92,162.91,0.2]
[1754447763380,19.40929266,162.92,162.91,0.2]
[1754447763697,60.6576698,162.92,162.91,0.2]
[1754447764749,34.6576698,162.92,162.91,0.2]
[1754447766768,38.3358143,162.9,162.89,0.06]
[1754447767081,103.02842339,162.9,162.89,0.06]
[1754447767756,102.88626182,162.9,162.89,0.06]
[1754447769186,103.54626182,162.9,162.89,0.06]
[1754447770159,103.68842339,162.9,162.89,0.06]
[1754447771270,112.16277426,162.9,162.89,0.06]
[1754447771799,15.24837714,162.89,162.87,0.2]
[1754447772090,41.24837714,162.87,162.86,0.2]
[1754447772261,53.82968797,162.87,162.86,0.2]
[1754447772468,54.48968797,162.87,162.86,0.2]
[1754447772791,59.96955412,162.87,162.86,0.2]
[1754447773166,60.62955412,162.87,162.86,0.2]
[1754447775297,69.4335125,162.87,162.86,0.2]
[1754447777366,54.01713391,162.87,162.86,0.2]
[1754447777578,62.49148478,162.87,162.86,0.9]
[1754447777871,17.27830925,162.87,162.86,0.9]
[1754447778272,21.37457505,162.87,162.86,0.9]
[1754447778984,21.37457505,162.87,162.86,0.2]
[1754447779677,21.37457505,162.87,162.86,0.9]
[1754447780283,27.5144412,162.87,162.86,0.9]
[1754447780474,27.5144412,162.87,162.86,0.2]
[1754447780676,27.5144412,162.87,162.86,0.9]
[1754447781075,17.27830925,162.87,162.86,0.9]
[1754447781391,21.37723849,162.87,162.86,0.9]
[1754447782002,17.27830925,162.87,162.86,0.9]
[1754447782203,8.80395838,162.87,162.86,0.9]
[1754447784397,8.80395838,162.87,162.86,15.51459402]
[1754447786006,8.80395838,162.87,162.86,0.9]
[1754447787302,21.39126668,162.87,162.86,0.2]
[1754447789415,12.91691581,162.87,162.86,9.37435087]
[1754447790323,12.91691581,162.87,162.86,15.51459402]
[1754447790479,12.92730438,162.87,162.86,15.51459402]
[1754447790679,8.80395838,162.87,162.86,15.51459402]
[1754447790912,12.92730387,162.87,162.86,15.51459402]
[1754447793418,8.80395838,162.87,162.86,15.51459402]
[1754447794917,12.93162366,162.87,162.86,0.9]
[1754447795127,12.93162366,162.87,162.86,7.04024315]
[1754447795301,12.93162366,162.87,162.86,15.51459402]
[1754447795627,12.93162366,162.87,162.86,9.37435087]
[1754447796205,12.93162366,162.87,162.86,15.51459402]
[1754447796927,12.93162366,162.87,162.86,7.04024315]
[1754447797124,4.12766528,162.87,162.86,6.34024315]
[1754447797828,4.12766528,162.87,162.86,7.00024315]
[1754447799042,4.12766528,162.87,162.86,0.2]
[1754447799323,13.27201615,162.87,162.86,0.2]
[1754447800151,24.5394099,162.87,162.86,0.2]
[1754447801933,24.5394099,162.87,162.86,0.86]
[1754447801934,4.12766528,162.87,162.86,0.86]
[1754447802721,4.12766528,162.87,162.86,7.00024315]
[1754447802930,4.12766528,162.87,162.86,0.86]
[1754447803626,4.12766528,162.87,162.86,0.2]
[1754447805214,13.27201615,162.87,162.86,0.2]
[1754447805411,24.5394099,162.87,162.86,0.2]
[1754447805912,24.57926778,162.87,162.86,0.2]
[1754447806218,39.68548335,162.87,162.86,0.2]
[1754447806541,15.10621557,162.86,162.85,0.06]
[1754447806841,28.38170011,162.86,162.85,0.06]
[1754447807025,32.87624307,162.86,162.85,0.06]
[1754447807225,33.54624307,162.86,162.85,0.06]
[1754447807432,39.68648622,162.86,162.85,0.06]
[1754447807740,31.21213535,162.86,162.85,0.06]
[1754447807938,39.68648622,162.86,162.85,0.06]
[1754447808515,67.39114003,162.86,162.84,0.06]
[1754447808710,28.38170011,162.85,162.84,0.06]
[1754447809545,34.66448188,162.85,162.84,0.06]
[1754447809856,41.10621557,162.83,162.82,0.2]
[1754447810018,53.71170011,162.83,162.82,0.2]
[1754447810337,54.33170011,162.83,162.82,0.2]
[1754447811827,60.47307454,162.83,162.82,0.2]
[1754447812240,103.53307454,162.83,162.82,0.2]
[1754447813021,38.60548454,162.83,162.82,0.2]
[1754447813320,43.76572045,162.83,162.82,0.2]
[1754447814048,38.60548454,162.83,162.82,0.2]
[1754447814445,12.60548454,162.83,162.82,0.86]
[1754447814622,4.13113367,162.83,162.82,0.86]
[1754447815246,4.13113367,162.83,162.82,0.2]
[1754447815433,19.41685897,162.83,162.82,0.2]
[1754447815835,24.57709488,162.83,162.82,0.2]
[1754447816424,18.74685897,162.83,162.82,0.2]
[1754447816951,4.13113367,162.83,162.82,0.86]
[1754447817152,4.13113367,162.83,162.82,0.2]
[1754447817537,12.60548454,162.83,162.82,0.2]
[1754447818953,18.74685897,162.83,162.82,0.2]
[1754447819252,12.60548454,162.83,162.82,0.2]
[1754447819839,12.60548454,162.83,162.82,0.86]
[1754447819840,4.13113367,162.83,162.82,0.86]
[1754447820533,4.13113367,162.84,162.82,0.86]
[1754447820728,26.0,162.85,162.82,0.2]
[1754447820729,4.13113367,162.83,162.82,0.2]
[1754447821254,4.13113367,162.83,162.82,0.86]
[1754447821854,4.13113367,162.83,162.82,0.2]
[1754447822070,12.60548454,162.83,162.82,0.2]
[1754447823155,4.13113367,162.83,162.82,0.86]
[1754447823672,4.13113367,162.84,162.82,0.86]
[1754447823849,4.13113367,162.83,162.82,0.2]
[1754447824231,12.60548454,162.83,162.82,0.2]
[1754447825846,18.74685897,162.83,162.82,0.2]
[1754447826241,19.41685897,162.83,162.82,0.2]
[1754447826644,12.60548454,162.83,162.82,0.2]
[1754447827162,4.13113367,162.83,162.82,0.9]
[1754447827677,4.13113367,162.83,162.82,0.2]
[1754447828058,4.13113367,162.83,162.82,0.9]
[1754447828233,4.13113367,162.83,162.82,0.2]
[1754447828765,18.74685897,162.83,162.82,0.2]
[1754447829648,34.52307454,162.83,162.82,0.2]
[1754447830036,39.68331045,162.83,162.82,0.2]
[1754447834260,39.01331045,162.83,162.82,0.2]
[1754447834447,39.68331045,162.83,162.82,0.2]
[1754447835641,82.78331045,162.83,162.82,0.2]
[1754447836971,108.92547202,162.83,162.82,0.2]
[1754447837464,49.58056644,162.81,162.8,0.06]
[1754447837640,53.71170011,162.81,162.8,0.06]
[1754447838759,59.85382897,162.81,162.8,0.06]
[1754447838967,60.52382897,162.81,162.8,0.06]
[1754447839169,108.89924212,162.81,162.8,0.06]
[1754447839365,103.74599054,162.81,162.8,0.06]
[1754447839874,15.24837714,162.8,162.74,0.2]
[1754447840179,8.47435087,162.75,162.74,0.2]
[1754447840753,12.60548454,162.75,162.74,0.2]
[1754447840954,18.74987778,162.75,162.74,0.2]
[1754447841159,12.60548454,162.75,162.74,0.2]
[1754447841379,18.74987778,162.75,162.74,0.2]
[1754447842088,12.60548454,162.75,162.74,0.2]
[1754447842246,18.74987778,162.75,162.74,0.2]
[1754447842569,12.60548454,162.75,162.74,0.9]
[1754447842740,4.13113367,162.75,162.74,0.9]
[1754447842948,4.13113367,162.77,162.74,15.51912167]
[1754447843148,10.27403308,162.79,162.75,9.17435087]
[1754447843355,4.13113367,162.78,162.76,0.7]
[1754447843553,4.13113367,162.77,162.74,14.81912167]
[1754447843770,4.13113367,162.79,162.74,14.81912167]
[1754447843968,4.13113367,162.78,162.74,14.81912167]
[1754447844272,4.13113367,162.77,162.75,0.7]
[1754447844474,4.13113367,162.78,162.76,0.7]
[1754447844676,4.13113367,162.77,162.76,0.7]
[1754447844859,4.13113367,162.78,162.76,0.7]
[1754447845059,4.13113367,162.77,162.76,0.7]
[1754447845263,4.13113367,162.78,162.76,0.7]
[1754447845571,4.13113367,162.77,162.74,0.9]
[1754447845773,4.13113367,162.76,162.74,0.2]
[1754447845971,4.13113367,162.77,162.74,0.2]
[1754447846158,8.47435087,162.78,162.75,0.7]
[1754447846159,4.13113367,162.76,162.75,0.7]
[1754447846354,4.13113367,162.77,162.74,6.34468866]
[1754447846563,8.47435087,162.78,162.76,0.7]
[1754447846775,4.1245714,162.77,162.76,0.7]
[1754447847669,4.1245714,162.78,162.76,15.31836659]
[1754447847888,43.1,162.82,162.76,15.31836659]
[1754447847889,4.1245714,162.8,162.77,8.47435087]
[1754447848086,4.1245714,162.79,162.77,8.47435087]
[1754447848255,4.1245714,162.78,162.77,8.47435087]
[1754447848452,52.404006,162.83,162.77,51.57435087]
[1754447848453,4.1245714,162.81,162.77,51.57435087]
[1754447848758,4.1245714,162.8,162.78,8.47435087]
[1754447848973,4.1245714,162.79,162.78,14.61761171]
[1754447849183,4.1245714,162.82,162.78,14.61761171]
[1754447849398,4.1245714,162.81,162.78,14.61761171]
[1754447849555,4.1245714,162.8,162.79,0.7]
[1754447849755,4.1245714,162.8,162.78,14.61761171]
[1754447849972,4.1245714,162.79,162.78,14.61761171]
[1754447850156,4.1245714,162.82,162.78,15.31761171]
[1754447850365,4.1245714,162.81,162.79,0.7]
[1754447850568,4.1245714,162.8,162.79,0.7]
[1754447851870,4.1245714,162.8,162.77,52.27435087]
[1754447852185,4.1245714,162.79,162.77,43.8]
[1754447852384,4.1245714,162.78,162.77,43.8]
[1754447852975,4.1245714,162.78,162.77,58.41798913]
[1754447853162,4.1245714,162.8,162.77,58.41798913]
[1754447853369,4.1245714,162.79,162.78,9.17435087]
[1754447854084,4.1245714,162.79,162.78,15.31761171]
[1754447855186,4.1245714,162.79,162.78,0.7]
[1754447855388,4.1245714,162.79,162.77,43.1]
[1754447855698,4.1245714,162.78,162.77,49.24363826]
[1754447855889,4.1245714,162.8,162.77,57.71798913]
[1754447856095,4.13127753,162.79,162.78,8.47435087]
[1754447856298,4.13127753,162.79,162.78,9.19435087]
[1754447856678,13.66066749,162.84,162.78,9.19435087]
[1754447856985,4.13111127,162.83,162.79,9.19435087]
[1754447857300,4.13111127,162.82,162.8,0.72]
[1754447857606,13.66066749,162.84,162.8,43.12]
[1754447857607,4.13111127,162.81,162.8,43.12]
[1754447858065,4.13111127,162.81,162.8,49.98250614]
[1754447858868,4.13111127,162.81,162.8,58.45685701]
[1754447860271,4.13111127,162.81,162.8,57.73685701]
[1754447860862,4.13111127,162.81,162.8,58.45685701]
[1754447862110,4.13111127,162.81,162.8,57.73685701]
[1754447862397,4.13111127,162.81,162.79,43.1]
[1754447862581,4.13111127,162.8,162.79,57.71708653]
[1754447862778,4.13111127,162.8,162.79,58.43708653]
[1754447863669,4.13111127,162.83,162.79,58.43708653]
[1754447863869,4.13111127,162.82,162.8,0.72]
[1754447864088,0.03,162.84,162.81,51.57435087]
[1754447864293,0.03,162.84,162.82,14.61610249]
[1754447864294,4.12948373,162.83,162.82,14.61610249]
[1754447864597,4.12948373,162.83,162.82,15.33610249]
[1754447865491,4.12948373,162.83,162.81,57.71634788]
[1754447865788,4.12948373,162.82,162.81,43.1]
[1754447865994,4.12876128,162.82,162.81,43.1]
[1754447866573,4.12876128,162.82,162.81,49.24212886]
[1754447867203,4.12876128,162.82,162.81,58.43647973]
[1754447867572,4.12876128,162.83,162.81,58.43647973]
[1754447867875,0.03,162.84,162.82,9.19435087]
[1754447868082,0.03,162.84,162.83,43.08]
[1754447868279,4.15813478,162.84,162.83,43.08]
[1754447869289,13.29248565,162.84,162.83,43.08]
[1754447869594,13.29248565,162.84,162.81,43.08]
[1754447869896,4.78813478,162.83,162.81,43.08]
[1754447870075,4.12813478,162.82,162.81,43.08]
[1754447871394,4.12813478,162.83,162.81,43.08]
[1754447871700,4.12813478,162.82,162.81,49.94204245]
[1754447871902,4.12813478,162.83,162.81,49.94204245]
[1754447872203,4.12813478,162.82,162.81,49.94204245]
[1754447872385,4.12813478,162.83,162.81,49.94204245]
[1754447872685,4.12813478,162.82,162.81,49.94204245]
[1754447872893,4.12813478,162.83,162.81,49.94204245]
[1754447873184,4.12813478,162.82,162.81,49.94204245]
[1754447873384,4.12813478,162.83,162.81,49.94204245]
[1754447873599,4.12813478,162.82,162.81,49.94204245]
[1754447873796,4.12813478,162.83,162.81,49.94204245]
[1754447874100,4.12813478,162.82,162.81,49.94204245]
[1754447874303,4.12813478,162.83,162.81,49.94204245]
[1754447874596,0.03,162.84,162.81,58.41639332]
[1754447874773,4.12616043,162.83,162.81,58.41639332]
[1754447874972,0.03,162.84,162.81,58.41639332]
[1754447875172,4.12616043,162.83,162.82,0.72]
[1754447875872,4.12616043,162.83,162.82,6.86175162]
[1754447877807,4.12616043,162.83,162.82,15.33610249]
[1754447878218,4.15616043,162.84,162.82,15.33610249]
[1754447878377,4.15616043,162.84,162.83,43.74]
[1754447879921,4.15616043,162.84,162.83,43.02]
[1754447880097,4.78616043,162.84,162.83,43.02]
[1754447880507,19.40155077,162.84,162.76,0.78]
[1754447880827,8.47435087,162.77,162.76,0.06]
[1754447881030,12.6005113,162.77,162.76,0.06]
[1754447881319,13.2305113,162.77,162.76,0.06]
[1754447881676,4.12616043,162.77,162.76,0.06]
[1754447882384,13.2305113,162.77,162.76,0.06]
[1754447882792,39.63695883,162.77,162.76,0.06]
[1754447883000,65.63695883,162.77,162.76,0.06]
[1754447886516,60.48036513,162.77,162.76,0.06]
[1754447887323,65.06028069,162.77,162.76,0.06]
[1754447887529,65.06086345,162.77,162.76,0.06]
[1754447887832,58.28669377,162.77,162.76,0.06]
[1754447888406,70.25692573,162.77,162.76,0.06]
[1754447888729,65.10033203,162.77,162.76,0.06]
[1754447895544,65.2424936,162.77,162.76,0.06]
[1754447896349,65.23486622,162.77,162.76,0.06]
[1754447897258,39.23486622,162.77,162.76,0.06]
[1754447897452,44.39145992,162.77,162.76,0.06]
[1754447899467,39.23486622,162.77,162.76,0.06]
[1754447900880,44.39145992,162.77,162.76,0.06]
[1754447902063,38.56486622,162.77,162.76,0.06]
[1754447902253,38.56094414,162.77,162.76,0.06]
[1754447902458,39.23094414,162.77,162.76,0.06]
[1754447902665,39.22970383,162.77,162.76,0.06]
[1754447903051,38.55970383,162.77,162.76,0.06]
[1754447903374,39.22970383,162.77,162.76,0.06]
[1754447903578,44.38629753,162.77,162.76,1e-08]
[1754447904177,41.10621557,162.75,162.74,0.2]
[1754447904361,101.47606557,162.75,162.74,0.2]
[1754447904678,102.14606557,162.75,162.74,0.2]
[1754447905242,15.24837714,162.74,162.67,0.67]
[1754447905443,8.47435087,162.69,162.68,0.67]
[1754447906575,8.47435087,162.7,162.68,0.67]
[1754447908353,8.47435087,162.69,162.64,97.57435087]
[1754447908577,8.47435087,162.71,162.66,8.47435087]
[1754447908877,8.47435087,162.71,162.67,0.67]
[1754447909396,4.56469187,162.7,162.67,0.67]
[1754447909690,4.56469187,162.7,162.67,6.8171575]
[1754447909864,51.53435087,162.73,162.68,9.14435087]
[1754447910052,13.03914456,162.72,162.69,0.67]
[1754447910382,4.56479369,162.71,162.69,9.14435087]
[1754447910557,8.47435087,162.74,162.7,0.67]
[1754447910752,13.03964864,162.73,162.7,0.67]
[1754447910950,4.56529777,162.72,162.7,0.67]
[1754447911881,19.18524819,162.72,162.7,0.67]
[1754447912055,13.03964864,162.71,162.68,0.67]
[1754447912260,13.03861423,162.7,162.68,0.67]
[1754447912462,8.47435087,162.7,162.68,0.67]
[1754447912771,8.47435087,162.71,162.69,0.67]
[1754447913173,13.03920459,162.7,162.67,89.77]
[1754447913368,8.47435087,162.71,162.68,0.67]
[1754447913683,12.58285743,162.71,162.68,0.67]
[1754447913885,18.72890902,162.71,162.68,0.67]
[1754447914065,14.62040246,162.71,162.68,0.67]
[1754447914888,4.56769253,162.7,162.68,0.67]
[1754447915189,13.0420434,162.7,162.68,0.67]
[1754447915386,8.47435087,162.7,162.68,0.67]
[1754447915689,4.56880314,162.69,162.67,0.06]
[1754447915870,4.56880314,162.69,162.67,0.74]
[1754447917192,14.62067132,162.7,162.67,0.74]
[1754447917491,4.57065981,162.69,162.67,0.74]
[1754447918296,14.62067132,162.7,162.67,0.74]
[1754447918597,4.5724312,162.69,162.67,0.74]
[1754447918780,4.5724312,162.68,162.67,0.74]
[1754447918976,4.5724312,162.69,162.67,0.74]
[1754447919296,13.04678207,162.68,162.67,0.06]
[1754447919870,23.30996653,162.68,162.67,0.06]